fUST/lending_fUST_20250912
["ID","MTS","AMOUNT","RATE_DAILY","PERIOD"]
[384974318,1757637046952,-480.0,0.00014489,2]
[384974319,1757637046963,-480.0,0.00014489,2]
[384974321,1757637046973,-480.0,0.00014489,2]
[384974323,1757637046982,-480.0,0.00014489,2]
[384974325,1757637046992,-480.0,0.00014489,2]
[384974327,1757637047001,-480.0,0.00014489,2]
[384974330,1757637047011,-490.68032206,0.00014489,2]
[384974331,1757637047020,-480.0,0.00014489,2]
[384974333,1757637047029,-480.0,0.00014489,2]
[384974335,1757637047038,-480.0,0.00014489,2]
[384974337,1757637047048,-480.0,0.0001449,2]
[384974339,1757637047057,-497.2,0.0001449,2]
[384974341,1757637047066,-480.01114593,0.0001449,2]
[384974343,1757637047075,-480.0,0.0001449,2]
[384974345,1757637047084,-251.11906951,0.0001449,2]
[384974347,1757637047094,-480.0,0.0001449,2]
[384974349,1757637047103,-562.78,0.0001449,2]
[384974351,1757637047113,-480.0,0.0001449,2]
[384974353,1757637047122,-480.0,0.0001449,2]
[384974355,1757637047131,-480.0,0.0001449,2]
[384974357,1757637047139,-274.48475807,0.0001449,2]
[384974359,1757637047149,-480.0,0.0001449,2]
[384974361,1757637047158,-480.0,0.0001449,2]
[384974363,1757637047167,-480.0,0.0001449,2]
[384974365,1757637047176,-480.0,0.0001449,2]
[384974367,1757637047185,-480.0,0.0001449,2]
[384974369,1757637047195,-480.0,0.0001449,2]
[384974371,1757637047203,-480.0,0.0001449,2]
[384974373,1757637047213,-942.03087267,0.00014568,2]
[384974375,1757637047223,-10583.28703691,0.00014592,2]
[384974377,1757637047231,-480.0,0.00014662,2]
[384974379,1757637047240,-480.0,0.00014662,2]
[384974381,1757637047250,-480.0,0.00014662,2]
[384974383,1757637047260,-1102.99,0.00014662,2]
[384974385,1757637047269,-480.0,0.00014663,2]
[384974387,1757637047278,-480.0,0.00014663,2]
[384974389,1757637047289,-480.0,0.00014663,2]
[384974391,1757637047299,-480.0,0.00014663,2]
[384974393,1757637047308,-480.0,0.00014663,2]
[384974395,1757637047317,-480.0,0.00014663,2]
[384974398,1757637047329,-480.0,0.00014663,2]
[384974400,1757637047338,-589.78,0.00014663,2]
[384974402,1757637047347,-480.0,0.00014663,2]
[384974404,1757637047356,-480.0,0.00014663,2]
[384974406,1757637047365,-480.0,0.00014663,2]
[384974408,1757637047373,-941.26,0.00014663,2]
[384974409,1757637047382,-623.07,0.00014663,2]
[384974411,1757637047391,-480.0,0.00014663,2]
[384974413,1757637047400,-480.0,0.00014663,2]
[384974415,1757637047410,-480.0,0.00014663,2]
[384974418,1757637047419,-538.85,0.00014663,2]
[384974419,1757637047429,-480.0,0.00014663,2]
[384974421,1757637047439,-480.0,0.00014663,2]
[384974423,1757637047448,-480.0,0.00014663,2]
[384974425,1757637047457,-539.84,0.00014663,2]
[384974427,1757637047467,-364.62455881,0.00014663,2]
[384974429,1757637047476,-480.0,0.00014663,2]
[384974431,1757637047486,-2960.05,0.00014663,2]
[384974433,1757637047495,-480.0,0.00014663,2]
[384974435,1757637047504,-480.0,0.00014663,2]
[384974437,1757637047513,-480.0,0.00014663,2]
[384974439,1757637047522,-480.0,0.00014663,2]
[384974441,1757637047531,-718.62,0.00014663,2]
[384974443,1757637047540,-480.0,0.00014663,2]
[384974445,1757637047550,-480.0,0.00014663,2]
[384974447,1757637047559,-534.0,0.00014664,2]
[384974449,1757637047568,-480.0,0.00014664,2]
[384974451,1757637047577,-480.0,0.00014664,2]
[384974453,1757637047587,-480.0,0.00014664,2]
[384974455,1757637047596,-480.0,0.00014664,2]
[384974457,1757637047605,-480.0,0.00014664,2]
[384974459,1757637047615,-480.0,0.00014664,2]
[384974461,1757637047624,-2258.94,0.00014664,2]
[384974463,1757637047634,-480.0,0.00014664,2]
[384974466,1757637047643,-480.0,0.00014664,2]
[384974468,1757637047652,-721.6,0.00014664,2]
[384974470,1757637047661,-480.0,0.00014664,2]
[384974471,1757637047670,-847.11,0.00014664,2]
[384974473,1757637047679,-480.0,0.00014664,2]
[384974475,1757637047688,-480.0,0.00014664,2]
[384974477,1757637047697,-480.0,0.00014664,2]
[384974479,1757637047707,-4105.86,0.00014664,2]
[384974481,1757637047715,-480.0,0.00014664,2]
[384974483,1757637047725,-480.0,0.00014664,2]
[384974485,1757637047734,-475.61778359,0.00014763,2]
[384974487,1757637047744,-480.0,0.00014763,2]
[384974489,1757637047753,-480.0,0.00014763,2]
[384974492,1757637047768,-480.0,0.00014763,2]
[384974493,1757637047777,-480.0,0.00014763,2]
[384974495,1757637047787,-480.0,0.00014763,2]
[384974497,1757637047795,-480.0,0.00014763,2]
[384974499,1757637047804,-480.0,0.00014763,2]
[384974501,1757637047813,-480.0,0.00014763,2]
[384974503,1757637047822,-1039.14,0.00014763,2]
[384974505,1757637047831,-480.0,0.00014763,2]
[384974507,1757637047840,-534.15,0.00014763,2]
[384974509,1757637047849,-204.58,0.00014763,2]
[384974511,1757637047859,-480.0,0.00014763,2]
[384974513,1757637047868,-480.0,0.00014763,2]
[384974523,1757637047877,-480.0,0.00014763,2]
[384974526,1757637047971,-243.99611491,0.00014763,2]
[384974528,1757637047980,-480.0,0.00014763,2]
[384974530,1757637047990,-480.0,0.00014763,2]
[384974532,1757637047999,-480.0,0.00014763,2]
[384974534,1757637048008,-410.97829499,0.00014763,2]
[384974536,1757637048017,-157.89993872,0.00014764,2]
[384974538,1757637048026,-480.0,0.00014764,2]
[384974540,1757637048034,-480.0,0.00014764,2]
[384974542,1757637048043,-201.09101087,0.00014764,2]
[384974544,1757637048052,-480.0,0.00014764,2]
[384974546,1757637048062,-480.0,0.00014764,2]
[384974548,1757637048071,-480.0,0.00014764,2]
[384974550,1757637048080,-126104.32105296,0.00014805,2]
[384974552,1757637048089,-942.03087267,0.00014837,2]
[384974554,1757637048099,-500.0,0.00014887,2]
[384974556,1757637048108,-481.76753524,0.00014887,2]
[384974558,1757637048117,-500.0,0.00014887,2]
[384974560,1757637048126,-500.0,0.00014887,2]
[384974562,1757637048135,-500.0,0.00014887,2]
[384974564,1757637048144,-158.88965324,0.00014887,2]
[384974566,1757637048154,-500.16837161,0.00014887,2]
[384974567,1757637048164,-500.0,0.00014887,2]
[384974569,1757637048174,-340.78829324,0.00014887,2]
[384974571,1757637048183,-500.0,0.00014887,2]
[384974573,1757637048193,-500.0,0.00014909,2]
[384974575,1757637048202,-846.96613202,0.0001491,2]
[384974577,1757637048212,-160.0,0.0001491,2]
[384974579,1757637048222,-217.69300629,0.0001491,2]
[384974581,1757637048231,-233.10680167,0.0001491,2]
[384974583,1757637048242,-530.95967032,0.0001491,2]
[384974586,1757637048252,-160.0,0.0001491,2]
[384974588,1757637048262,-1122.40562109,0.00014931,2]
[384974600,1757637048376,-168.13276953,0.00014931,2]
[384974602,1757637048385,-480.0,0.00014936,2]
[384974604,1757637048395,-480.0,0.00014936,2]
[384974606,1757637048404,-480.0,0.00014936,2]
[384974608,1757637048414,-1102.99,0.00014936,2]
[384974610,1757637048424,-480.0,0.00014937,2]
[384974612,1757637048434,-480.0,0.00014937,2]
[384974614,1757637048443,-480.0,0.00014937,2]
[384974615,1757637048452,-480.0,0.00014937,2]
[384974617,1757637048461,-489.72142323,0.00014937,2]
[384974619,1757637048472,-480.0,0.00014937,2]
[384974622,1757637048482,-480.0,0.00014937,2]
[384974624,1757637048491,-589.78,0.00014937,2]
[384974626,1757637048500,-480.0,0.00014937,2]
[384974627,1757637048510,-480.0,0.00014937,2]
[384974630,1757637048520,-480.0,0.00014937,2]
[384974632,1757637048530,-941.26,0.00014937,2]
[384974633,1757637048540,-623.07,0.00014937,2]
[384974635,1757637048549,-480.0,0.00014937,2]
[384974637,1757637048558,-480.0,0.00014937,2]
[384974639,1757637048568,-480.0,0.00014937,2]
[384974642,1757637048579,-538.85,0.00014937,2]
[384974644,1757637048589,-480.0,0.00014937,2]
[384974646,1757637048600,-219.56347825,0.00014937,2]
[384974648,1757637048609,-480.0,0.00014937,2]
[384974650,1757637048619,-539.84,0.00014937,2]
[384974652,1757637048628,-480.0,0.00014937,2]
[384974654,1757637048638,-2960.05,0.00014937,2]
[384974656,1757637048647,-480.0,0.00014937,2]
[384974657,1757637048656,-480.0,0.00014937,2]
[384974659,1757637048665,-480.0,0.00014937,2]
[384974661,1757637048675,-480.0,0.00014937,2]
[384974663,1757637048683,-718.62,0.00014937,2]
[384974665,1757637048693,-480.0,0.00014937,2]
[384974667,1757637048703,-84.79765139,0.00014937,2]
[384975160,1757637113086,2000.0,0.00013483,2]
[384975161,1757637135726,10000.01,0.00013742,2]
[384975162,1757637135748,10000.01,0.00013742,2]
[384975163,1757637135770,10000.01,0.00013742,2]
[384975164,1757637135793,10000.01,0.00013742,2]
[384975165,1757637135816,10000.01,0.00013742,2]
[384975166,1757637135838,10000.01,0.00013742,2]
[384975167,1757637135859,10000.01,0.00013742,2]
[384975168,1757637135881,10000.01,0.00013742,2]
[384975169,1757637135901,10000.01,0.00013742,2]
[384975170,1757637135922,10000.01,0.00013742,2]
[384975171,1757637135942,10000.01,0.00013742,2]
[384975172,1757637135963,10000.01,0.00013742,2]
[384975173,1757637135983,10000.01,0.00013742,2]
[384975174,1757637136004,10000.01,0.00013742,2]
[384975175,1757637136024,10000.01,0.00013742,2]
[384975176,1757637136044,10000.01,0.00013742,2]
[384975177,1757637136066,10000.01,0.00013742,2]
[384975178,1757637136087,10000.01,0.00013742,2]
[384975179,1757637136108,10000.01,0.00013742,2]
[384975180,1757637136129,10000.01,0.00013742,2]
[384975181,1757637136150,10000.01,0.00013742,2]
[384975182,1757637136173,10000.01,0.00013742,2]
[384975183,1757637136198,10000.01,0.00013742,2]
[384975184,1757637136219,10000.01,0.00013742,2]
[384975193,1757637230765,1000.0,0.00012903,2]
[384975194,1757637253038,1726.76771981,0.00013602,2]
[384975195,1757637276808,1726.76771981,0.00013602,2]
[384975197,1757637301791,1726.76771981,0.00013602,2]
[384975198,1757637325035,1726.76771981,0.00013602,2]
[384975200,1757637347994,1726.76771981,0.00013602,2]
[384975201,1757637353105,366.17140095,0.00013699,2]
[384975202,1757637353126,183.75128005,0.00013699,2]
[384975203,1757637353460,-1726.76771981,0.00013739,2]
[384975204,1757637354578,-6176.78133399,0.00013742,2]
[384975205,1757637354686,-10000.01,0.00013742,2]
[384975206,1757637354818,-10000.01,0.00013742,2]
[384975207,1757637354949,-10000.01,0.00013742,2]
[384975209,1757637371649,300.0,0.00013604,2]
[384975211,1757637493584,9516.25871995,0.00012866,2]
[384975212,1757637493610,10000.01,0.00012866,2]
[384975213,1757637493638,5939.26352265,0.00012866,2]
[384975215,1757637696117,159.823955,0.00024,30]
[384975216,1757637703406,158.030467,0.0002352,30]
[384975217,1757637703712,158.030467,0.0002304,30]
[384975218,1757637703998,158.030467,0.0002256,30]
[384975219,1757637704297,158.030467,0.0002208,30]
[384975220,1757637772710,1510.92175486,0.00013642,2]
[384975221,1757637775448,2549.82472249,0.00012815,2]
[384975222,1757637775472,834.86303491,0.00012815,2]
[384975223,1757637786357,5000.0,0.000151,7]
[384975224,1757637794289,888.46403098,0.000151,7]
[384975225,1757637795622,-1174.0,0.0001374,2]
[384975226,1757637795652,-300.0,0.0001374,2]
[384975227,1757637795682,-1168.64,0.0001374,2]
[384975228,1757637795711,-480.0,0.00013741,2]
[384975229,1757637795740,-480.0,0.00013741,2]
[384975230,1757637795769,-545.19,0.00013741,2]
[384975231,1757637795798,-480.0,0.00013741,2]
[384975232,1757637795827,-264.35,0.00013741,2]
[384975233,1757637795955,-215.65,0.00013741,2]
[384975234,1757637795984,-480.0,0.00013741,2]
[384975235,1757637796014,-480.0,0.00013741,2]
[384975236,1757637796046,-480.0,0.00013741,2]
[384975237,1757637796074,-334.87301986,0.00013741,2]
[384975238,1757637796102,-322.50198015,0.00013741,2]
[384975239,1757637796132,-480.0,0.00013741,2]
[384975240,1757637796271,-480.0,0.00013741,2]
[384975241,1757637796307,-480.0,0.00013741,2]
[384975242,1757637796337,-480.0,0.00013741,2]
[384975243,1757637796366,-480.0,0.00013741,2]
[384975244,1757637796396,-93.95999998,0.00013741,2]
[384975245,1757637796503,-386.04000002,0.00013741,2]
[384975246,1757637796532,-480.0,0.00013741,2]
[384975247,1757637796563,-540.63,0.00013741,2]
[384975248,1757637796592,-480.0,0.00013741,2]
[384975249,1757637796620,-480.0,0.00013741,2]
[384975250,1757637796650,-480.0,0.00013741,2]
[384975251,1757637796680,-862.82,0.00013741,2]
[384975252,1757637796708,-480.0,0.00013741,2]
[384975253,1757637797687,-1571.60824512,0.00013742,2]
[384975254,1757637797716,-623.07,0.00013741,2]
[384975255,1757637797725,-9376.94,0.00013742,2]
[384975256,1757637797748,-10000.01,0.00013742,2]
[384975257,1757637797766,-5213.19043475,0.00013742,2]
[384975258,1757637800843,272.25,0.00012329,2]
[384975259,1757637802373,5000.0,0.000151,7]
[384975260,1757637804126,480.0,0.00013741,2]
[384975261,1757637811293,226.88,0.00012329,2]
[384975262,1757637811332,2115.86811153,0.000151,7]
[384975263,1757637822004,189.06,0.00012329,2]
[384975264,1757637822346,480.0,0.00013741,2]
[384975265,1757637826136,404.45528765,0.0001374,2]
[384975266,1757637827173,163.78005511,0.00013701,2]
[384975267,1757637832735,157.55,0.00012329,2]
[384975268,1757637836678,480.0,0.0001374,2]
[384975269,1757637838670,480.0,0.00013741,2]
[384975270,1757637839554,480.0,0.00013741,2]
[384975271,1757637842809,480.0,0.00013741,2]
[384975272,1757637843434,787.8,0.00012329,2]
[384975273,1757637845683,480.0,0.00013741,2]
[384975274,1757637848197,480.0,0.0001374,2]
[384975275,1757637851146,463.78005511,0.00013701,2]
[384975276,1757637868408,480.0,0.00013741,2]
[384975277,1757637873327,514.86,0.00013741,2]
[384975278,1757637874313,463.78005511,0.00013701,2]
[384975279,1757637881590,480.0,0.00013741,2]
[384975280,1757637897118,1383.38673109,0.00013701,2]
[384975281,1757637909309,480.0,0.00013741,2]
[384975282,1757637915761,480.0,0.00013741,2]
[384975283,1757637921070,480.0,0.00013741,2]
[384975284,1757637926163,480.0,0.0001374,2]
[384975286,1757637938091,480.0,0.0001374,2]
[384975287,1757637940673,480.0,0.00013741,2]
[384975288,1757637951799,2713.37,0.00013741,2]
[384975289,1757637953709,1084.6132138,0.0001374,2]
[384975290,1757637953730,10000.01,0.0001374,2]
[384975291,1757637953752,10000.01,0.0001374,2]
[384975292,1757637953776,10000.01,0.0001374,2]
[384975293,1757637953798,10000.01,0.0001374,2]
[384975294,1757637953820,10000.01,0.0001374,2]
[384975295,1757637953841,10000.01,0.0001374,2]
[384975296,1757637953866,10000.01,0.0001374,2]
[384975297,1757637953895,10000.01,0.0001374,2]
[384975298,1757637953916,10000.01,0.0001374,2]
[384975299,1757637953937,10000.01,0.0001374,2]
[384975300,1757637953960,10000.01,0.0001374,2]
[384975301,1757637953981,10000.01,0.0001374,2]
[384975302,1757637954003,10000.01,0.0001374,2]
[384975303,1757637954027,10000.01,0.0001374,2]
[384975304,1757637954049,10000.01,0.0001374,2]
[384975305,1757637954078,10000.01,0.0001374,2]
[384975306,1757637954101,10000.01,0.0001374,2]
[384975307,1757637954124,10000.01,0.0001374,2]
[384975308,1757637954146,10000.01,0.0001374,2]
[384975309,1757637954168,10000.01,0.0001374,2]
[384975310,1757637954192,10000.01,0.0001374,2]
[384975311,1757637954214,10000.01,0.0001374,2]
[384975312,1757637954236,10000.01,0.0001374,2]
[384975313,1757637965120,300.0,0.00013602,2]
[384975314,1757637973031,300.0,0.00013602,2]
[384975315,1757637973514,-300.0,0.00013739,2]
[384975316,1757637977232,661.0,0.00012329,2]
[384975317,1757637981649,5548.2266432,0.00013603,2]
[384975318,1757637982667,-6085.23795893,0.0001374,2]
[384975319,1757637985622,-10000.01,0.0001374,2]
[384975320,1757637985739,-10000.01,0.0001374,2]
[384975321,1757637987750,550.83,0.00012329,2]
[384975322,1757637988460,-1941.33731931,0.0001374,2]
[384975323,1757637988487,-480.0,0.0001374,2]
[384975324,1757637988511,-480.0,0.0001374,2]
[384975325,1757637988649,-480.0,0.0001374,2]
[384975326,1757637988675,-480.0,0.0001374,2]
[384975327,1757637988698,-480.0,0.0001374,2]
[384975328,1757637988722,-407.05048966,0.0001374,2]
[384975329,1757637988745,-480.0,0.0001374,2]
[384975330,1757637988772,-658.74,0.00013741,2]
[384975331,1757637990699,5228.38780897,0.00013603,2]
[384975332,1757637992044,480.0,0.0001374,2]
[384975333,1757637992434,480.0,0.00013741,2]
[384975334,1757637994730,480.0,0.00013741,2]
[384975335,1757637998487,459.03,0.00012329,2]
[384975336,1757637998802,480.0,0.00013741,2]
[384975337,1757637999224,480.0,0.00013741,2]
[384975338,1757637999850,2030.296672,0.00013693,2]
[384975339,1757638007794,993.30252675,0.0001364,2]
[384975340,1757638009228,382.52,0.00012329,2]
[384975341,1757638010500,480.0,0.0001374,2]
[384975342,1757638015814,2030.296672,0.00013693,2]
[384975343,1757638018757,1119.95,0.0001374,2]
[384975344,1757638020084,382.52,0.00012329,2]
[384975345,1757638021029,518.1,0.0001374,2]
[384975346,1757638024351,2030.296672,0.00013693,2]
[384975349,1757638026294,480.0,0.00013741,2]
[384975350,1757638027620,38928.1883234,0.00013741,2]
[384975351,1757638029331,2258.94,0.00013741,2]
[384975352,1757638035265,480.0,0.0001374,2]
[384975353,1757638036430,480.0,0.00013741,2]
[384975354,1757638037525,480.0,0.0001374,2]
[384975355,1757638040415,2030.296672,0.00013693,2]
[384975356,1757638041114,480.0,0.00013741,2]
[384975357,1757638041281,255.02,0.00012329,2]
[384975358,1757638042095,480.0,0.00013741,2]
[384975359,1757638044760,480.0,0.00013741,2]
[384975360,1757638044875,480.0,0.00013741,2]
[384975369,1757638049021,2030.296672,0.00013693,2]
[384975388,1757638051938,212.51,0.00012329,2]
[384975389,1757638056095,1322.05653545,0.00013739,2]
[384975390,1757638056996,870.41,0.0001374,2]
[384975391,1757638058530,204.10530951,0.0001364,2]
[384975392,1757638061417,480.0,0.00013741,2]
[384975393,1757638062462,177.1,0.00012329,2]
[384975394,1757638063156,480.0,0.00013741,2]
[384975395,1757638064135,480.0,0.00013741,2]
[384975396,1757638064513,480.0,0.0001374,2]
[384975397,1757638067448,4067.9164482,0.00013741,2]
[384975398,1757638072935,885.5,0.00012329,2]
[384975399,1757638073085,396.6166272,0.00013693,2]
[384975400,1757638075187,493.4,0.00013741,2]
[384975401,1757638075489,486.72,0.0001374,2]
[384975402,1757638077356,568.7,0.0001374,2]
[384975403,1757638082727,721.6,0.00013741,2]
[384975404,1757638087844,2000.0,0.00013742,2]
[384975405,1757638088522,2000.0,0.00013742,2]
[384975406,1757638088892,2000.0,0.00013742,2]
[384975407,1757638089090,2000.0,0.00013742,2]
[384975408,1757638089329,480.0,0.00013741,2]
[384975409,1757638089960,2000.0,0.00013742,2]
[384975410,1757638090234,179.498,0.00013742,2]
[384975411,1757638093631,480.0,0.00013741,2]
[384975412,1757638096539,504.05,0.00013741,2]
[384975413,1757638100132,480.0,0.00013741,2]
[384975414,1757638105343,480.0,0.00013741,2]
[384975415,1757638106386,173.66886,0.00013423,2]
[384975416,1757638106729,1603.31502582,0.00013424,2]
[384975417,1757638107081,801.65751291,0.00013424,2]
[384975418,1757638107463,480.0,0.00013741,2]
[384975419,1757638115747,480.0,0.00013741,2]
[384975420,1757638115951,847.11,0.00013741,2]
[384975421,1757638120094,253596.48254351,0.0001374,2]
[384975422,1757638127042,480.0,0.0001374,2]
[384975423,1757638128276,480.0,0.00013741,2]
[384975424,1757638130664,480.0,0.00013741,2]
[384975425,1757638131372,1000.0,0.00012839,2]
[384975426,1757638142486,480.0,0.00013741,2]
[384975427,1757638146544,2732.5,0.00013741,2]
[384975429,1757638157222,480.0,0.00013741,2]
[384975430,1757638164492,480.0,0.0001374,2]
[384975431,1757638166952,480.0,0.00013739,2]
[384975432,1757638167455,684.28,0.00013741,2]
[384975433,1757638168519,480.0,0.0001374,2]
[384975434,1757638169956,480.0,0.0001374,2]
[384975435,1757638170900,480.0,0.0001374,2]
[384975436,1757638175297,1179.5,0.00027397,120]
[384975437,1757638177527,480.0,0.00013739,2]
[384975438,1757638178935,480.0,0.0001374,2]
[384975439,1757638185930,480.0,0.00013741,2]
[384975440,1757638185964,480.0,0.0001374,2]
[384975441,1757638188590,4135.48,0.00013741,2]
[384975442,1757638189089,480.0,0.00013739,2]
[384975443,1757638191290,480.0,0.0001374,2]
[384975444,1757638193866,480.0,0.0001374,2]
[384975445,1757638204251,478.09510796,0.00013739,2]
[384975446,1757638204568,610.67209308,0.0001374,2]
[384975447,1757638206685,480.0,0.00013741,2]
[384975448,1757638209399,480.0,0.00013741,2]
[384975449,1757638209518,480.0,0.00013741,2]
[384975450,1757638212193,480.0,0.0001374,2]
[384975452,1757638220010,480.0,0.00013741,2]
[384975453,1757638222112,480.0,0.00013741,2]
[384975454,1757638225528,480.0,0.00013741,2]
[384975455,1757638227973,480.0,0.0001374,2]
[384975456,1757638230104,480.0,0.0001374,2]
[384975515,1757638238348,480.0,0.0001374,2]
[384975531,1757638238498,-500.0,0.00013837,2]
[384975532,1757638238511,-500.0,0.00013837,2]
[384975533,1757638238520,-302.16457736,0.00013837,2]
[384975534,1757638238531,-500.0,0.00013837,2]
[384975535,1757638238541,-500.0,0.00013837,2]
[384975536,1757638238551,-500.0,0.00013837,2]
[384975538,1757638238561,-500.0,0.00013837,2]
[384975540,1757638238570,-500.0,0.00013837,2]
[384975542,1757638238580,-500.0,0.00013837,2]
[384975544,1757638238589,-500.0,0.00013837,2]
[384975547,1757638238600,-500.0,0.00013837,2]
[384975549,1757638238610,-537.3026348,0.00013837,2]
[384975551,1757638238619,-362.90365488,0.00013837,2]
[384975553,1757638238629,-500.0,0.00013837,2]
[384975555,1757638238639,-204.9852105,0.00013837,2]
[384975557,1757638238648,-500.0,0.00013837,2]
[384975558,1757638238660,-500.0,0.00013837,2]
[384975560,1757638238669,-1200.0,0.00013837,2]
[384975562,1757638238678,-300.0,0.00013837,2]
[384975564,1757638238687,-300.0,0.00013837,2]
[384975566,1757638238696,-37260.82818284,0.00013838,2]
[384975568,1757638238707,-1200.0,0.00013838,2]
[384975570,1757638238716,-480.0,0.00013839,2]
[384975572,1757638238725,-480.0,0.00013839,2]
[384975574,1757638238734,-434.44676853,0.00013839,2]
[384975576,1757638238743,-480.0,0.00013839,2]
[384975578,1757638238752,-480.0,0.00013839,2]
[384975580,1757638238767,-195.45780203,0.00013839,2]
[384975583,1757638238777,-274.13822531,0.00013839,2]
[384975584,1757638238786,-480.0,0.00013839,2]
[384975586,1757638238795,-480.0,0.00013839,2]
[384975588,1757638238805,-480.0,0.00013839,2]
[384975590,1757638238814,-480.0,0.0001384,2]
[384975592,1757638238824,-480.0,0.0001384,2]
[384975594,1757638238833,-480.0,0.0001384,2]
[384975596,1757638238842,-480.0,0.0001384,2]
[384975598,1757638238851,-480.0,0.0001384,2]
[384975600,1757638238860,-480.0,0.0001384,2]
[384975602,1757638238870,-480.0,0.0001384,2]
[384975604,1757638238879,-480.0,0.0001384,2]
[384975606,1757638238889,-480.0,0.0001384,2]
[384975608,1757638238899,-480.0,0.0001384,2]
[384975610,1757638238908,-480.0,0.0001384,2]
[384975612,1757638238918,-480.0,0.0001384,2]
[384975614,1757638238927,-480.0,0.0001384,2]
[384975616,1757638238937,-480.0,0.0001384,2]
[384975618,1757638238946,-480.0,0.0001384,2]
[384975620,1757638238956,-480.0,0.0001384,2]
[384975622,1757638238965,-480.0,0.0001384,2]
[384975624,1757638238974,-480.0,0.0001384,2]
[384975626,1757638238984,-480.0,0.0001384,2]
[384975628,1757638238993,-480.0,0.0001384,2]
[384975630,1757638239002,-480.0,0.0001384,2]
[384975632,1757638239015,-482.05875497,0.0001384,2]
[384975634,1757638239025,-480.0,0.0001384,2]
[384975636,1757638239034,-480.0,0.0001384,2]
[384975638,1757638239043,-480.0,0.0001384,2]
[384975640,1757638239053,-480.0,0.0001384,2]
[384975642,1757638239063,-480.0,0.0001384,2]
[384975644,1757638239074,-480.0,0.0001384,2]
[384975646,1757638239084,-480.0,0.0001384,2]
[384975648,1757638239095,-483.10175735,0.0001384,2]
[384975650,1757638239108,-480.0,0.0001384,2]
[384975652,1757638239119,-480.0,0.0001384,2]
[384975654,1757638239129,-480.0,0.0001384,2]
[384975656,1757638239139,-480.0,0.0001384,2]
[384975658,1757638239150,-480.0,0.0001384,2]
[384975660,1757638239160,-480.0,0.0001384,2]
[384975662,1757638239171,-480.0,0.0001384,2]
[384975664,1757638239181,-480.0,0.0001384,2]
[384975666,1757638239191,-480.0,0.0001384,2]
[384975668,1757638239201,-526.85,0.0001384,2]
[384975670,1757638239211,-480.0,0.0001384,2]
[384975672,1757638239222,-480.0,0.0001384,2]
[384975674,1757638239231,-480.0,0.0001384,2]
[384975676,1757638239240,-480.0,0.0001384,2]
[384975678,1757638239249,-571.87,0.0001384,2]
[384975680,1757638239262,-613.64525266,0.0001384,2]
[384975682,1757638239272,-480.0,0.0001384,2]